bitfinex/quotes_ETHUSD_20260209
["timestamp","ask_amount","ask_price","bid_price","bid_amount"]
[1770605676462,2.1510694,2084.9,2083.7,0.04586049]
[1770605676463,0.95197113,2084.8,2083.7,0.04586049]
[1770605676762,0.95197113,2084.8,2083.0,5.17307236]
[1770605676964,0.95197113,2084.8,2083.3,0.95515638]
[1770605677256,0.95197113,2084.6,2083.4,1.1999616]
[1770605678653,0.95197113,2084.6,2083.4,2.15511798]
[1770605679354,0.95197113,2084.4,2083.2,2.15523318]
[1770605680739,0.95197113,2084.4,2083.2,1.2000768]
[1770605680968,0.95197113,2084.4,2083.3,0.95515638]
[1770605681258,0.95197113,2084.5,2083.5,0.95515638]
[1770605682150,0.95197113,2084.7,2083.7,0.95515638]
[1770605682353,0.95197113,2084.7,2083.5,0.95515638]
[1770605683454,1.19927084,2084.6,2083.6,1.19984641]
[1770605683660,1.19927084,2084.6,2083.6,2.20086328]
[1770605684760,1.19927084,2084.6,2083.7,0.95515638]
[1770605685750,0.002,2084.4,2083.9,0.99279532]
[1770605685946,0.002,2084.4,2083.8,1.19973126]
[1770605686147,0.002,2084.4,2083.5,0.99379532]
[1770605686362,0.002,2084.4,2083.7,1.19973773]
[1770605686363,0.94184089,2084.4,2083.7,1.19973773]
[1770605686962,0.94184089,2084.4,2083.5,1.20086047]
[1770605687261,0.94184089,2084.4,2083.5,1.20087845]
[1770605687638,0.93984089,2084.2,2083.5,0.001]
[1770605689965,1.19955856,2084.1,2083.5,0.001]
[1770605692167,3.352,2084.2,2083.5,0.001]
[1770605692367,3.352,2084.2,2083.5,0.99379532]
[1770605694138,3.352,2084.2,2083.6,1.19984641]
[1770605695143,3.352,2084.2,2083.6,2.19264173]
[1770605695740,3.352,2084.2,2083.7,0.99279532]
[1770605696251,3.352,2084.2,2083.8,1.19973126]
[1770605696775,1.20138651,2084.4,2083.8,1.19973126]
[1770605696940,0.002,2084.4,2083.8,1.19973126]
[1770605697151,0.94184089,2084.4,2083.8,1.19973126]
[1770605697770,2.14124673,2084.4,2083.8,1.19973126]
[1770605698966,0.94184089,2084.4,2083.6,1.19984641]
[1770605699154,2.14122685,2084.4,2083.7,0.001]
[1770605699356,0.94184089,2084.4,2083.7,0.001]
[1770605700686,2.14122738,2084.4,2083.7,0.001]
[1770605700888,0.002,2084.6,2083.9,0.99279532]
[1770605701095,0.93984089,2085.0,2084.2,1.199501]
[1770605701258,0.002,2085.5,2084.7,0.99279532]
[1770605701459,2.14036614,2085.9,2084.9,0.99279532]
[1770605701783,0.93984089,2085.8,2084.6,0.04586049]
[1770605701994,0.93984089,2085.8,2084.6,1.03865581]
[1770605702355,1.20052525,2085.9,2084.6,1.03865581]
[1770605702558,2.14036614,2085.9,2084.9,1.03865581]
[1770605703165,2.14036614,2085.9,2085.0,1.19904076]
[1770605703409,1.20052525,2085.9,2085.0,1.19904076]
[1770605703681,0.93984089,2085.8,2085.0,1.19904076]
[1770605704759,0.93984089,2085.8,2084.7,1.19918338]
[1770605705192,0.93984089,2085.6,2084.8,1.19915131]
[1770605705485,0.93984089,2085.6,2084.7,1.1991683]
[1770605705989,0.93984089,2085.6,2084.5,1.19929808]
[1770605706164,0.93984089,2085.6,2084.3,3.352]
[1770605706364,0.93984089,2085.6,2084.4,1.19938132]
[1770605706674,0.93984089,2085.6,2084.5,1.1993219]
[1770605706874,0.93984089,2085.6,2084.4,1.19935521]
[1770605707286,0.93984089,2085.4,2084.4,1.19935521]
[1770605709778,0.93984089,2085.2,2084.3,4.55140413]
[1770605710100,0.93984089,2085.2,2084.2,4.79790273]
[1770605710101,0.93984089,2085.2,2084.2,1.1994733]
[1770605710395,0.93984089,2085.2,2084.3,1.19943983]
[1770605710696,0.93984089,2085.2,2084.2,1.19946478]
[1770605711090,0.93984089,2085.0,2083.7,3.352]
[1770605711402,0.93984089,2085.0,2084.0,1.1996128]
[1770605711703,0.93984089,2085.0,2083.9,1.19962841]
[1770605712003,0.93984089,2084.8,2084.4,0.001]
[1770605713085,0.93984089,2084.8,2084.1,0.001]
[1770605714271,2.1390542,2084.7,2084.1,0.001]
[1770605717009,2.1270022,2085.2,2084.1,0.99005934]
[1770605717306,0.92807644,2085.1,2084.1,0.99005934]
[1770605717507,0.92807644,2085.1,2084.1,0.001]
[1770605721021,0.92807644,2084.9,2084.1,0.001]
[1770605723312,4.79765699,2085.3,2084.1,0.99005934]
[1770605723515,1.19892576,2085.2,2084.3,0.98905934]
[1770605723917,2.1270022,2085.2,2084.3,0.98905934]
[1770605724610,2.12896933,2085.3,2084.3,0.99005934]
[1770605725113,2.12896933,2085.3,2084.5,0.98905934]
[1770605725114,1.20089289,2085.3,2084.5,0.98905934]
[1770605725314,0.93007644,2085.3,2084.5,0.98905934]
[1770605725501,0.93007644,2085.3,2084.4,1.2452181]
[1770605725817,0.93007644,2085.3,2084.5,1.19930809]
[1770605726017,0.93007644,2085.3,2084.4,1.24520549]
[1770605726590,0.002,2085.3,2084.5,0.98905934]
[1770605726792,0.002,2085.3,2084.6,0.98905934]
[1770605727210,0.002,2085.3,2084.7,1.03491983]
[1770605727421,0.002,2085.3,2084.6,1.19926038]
[1770605727621,0.002,2085.3,2084.7,1.03491983]
[1770605728023,0.93007644,2085.3,2084.5,1.19929873]
[1770605728204,0.93007644,2085.3,2084.6,1.19926138]
[1770605728739,0.002,2085.3,2084.7,0.98905934]
[1770605729403,0.002,2085.3,2084.8,1.19915579]
[1770605729906,0.002,2085.3,2084.8,2.18821513]
[1770605732037,0.002,2085.3,2084.6,1.19926442]
[1770605732038,0.93007644,2085.3,2084.6,1.19926442]
[1770605732333,0.002,2085.3,2084.7,1.19917907]
[1770605732510,0.002,2085.3,2084.8,1.19915556]
[1770605732896,0.002,2085.3,2084.5,0.04586049]
[1770605733124,0.002,2085.3,2084.6,1.19924197]
[1770605733125,0.93007644,2085.3,2084.6,1.19924197]
[1770605733336,0.002,2085.3,2084.7,1.19921288]
[1770605733628,0.002,2085.3,2084.6,1.19923705]
[1770605735810,0.002,2085.3,2084.7,0.98905934]
[1770605736495,0.002,2085.3,2084.6,1.19923705]
[1770605736496,0.93007644,2085.3,2084.6,1.19923705]
[1770605736703,0.93007644,2085.3,2084.3,0.001]
[1770605737096,0.93007644,2085.1,2084.3,0.001]
[1770605738522,2.1271172,2085.0,2084.3,0.001]
[1770605738897,1.19904076,2085.0,2084.3,0.001]
[1770605740328,0.92807644,2084.9,2084.3,0.001]
[1770605740535,0.92807644,2084.7,2084.3,0.001]
[1770605741794,1.19915579,2084.8,2084.3,0.001]
[1770605742512,4.79662317,2084.9,2084.3,0.001]
[1770605743107,0.92807644,2084.8,2084.3,0.001]
[1770605744034,4.79618078,2085.0,2084.3,0.001]
[1770605744510,1.19904076,2085.0,2084.3,0.001]
[1770605747509,0.002,2085.1,2084.3,0.001]
[1770605749531,0.002,2085.1,2084.4,1.03500833]
[1770605749907,0.002,2085.1,2084.5,0.001]
[1770605750223,0.002,2084.9,2084.5,0.001]
[1770605750535,0.002,2084.9,2084.5,0.99014784]
[1770605750909,0.002,2084.9,2084.5,0.001]
[1770605753031,0.002,2084.9,2084.6,0.98914784]
[1770605754132,0.002,2084.9,2084.5,0.001]
[1770605754633,0.002,2084.9,2084.5,2.18947621]
[1770605757039,0.002,2084.9,2084.5,1.20032837]
[1770605757225,0.002,2084.9,2084.5,0.001]
[1770605759756,0.002,2084.9,2084.1,0.001]
[1770605759757,0.92419016,2084.9,2084.1,0.001]
[1770605760149,0.92219016,2084.8,2084.0,0.001]
[1770605760529,0.96805065,2084.8,2083.7,0.001]
[1770605761444,0.92219016,2084.8,2083.7,0.001]
[1770605761773,0.92219016,2084.6,2083.7,0.001]
[1770605761926,2.12140347,2084.7,2083.8,0.002]
[1770605762259,2.12140347,2084.7,2083.8,0.04786049]
[1770605762457,2.12140347,2084.7,2083.8,0.002]
[1770605762958,0.92219016,2084.6,2084.3,0.001]
[1770605763859,1.20124953,2084.7,2084.3,0.003]
[1770605764232,1.20124953,2084.7,2084.3,0.001]
[1770605764460,2.12343969,2084.7,2084.3,0.001]
[1770605764659,1.20124953,2084.7,2084.4,0.002]
[1770605765259,1.20121386,2084.7,2084.4,0.002]
[1770605765440,2.12340402,2084.7,2084.4,0.002]
[1770605767261,1.20121386,2084.7,2084.4,0.002]
[1770605769462,0.92419016,2084.7,2084.3,0.002]
[1770605769956,0.002,2084.7,2084.3,0.002]
[1770605770447,0.002,2084.9,2084.2,0.98914784]
[1770605771150,0.002,2084.9,2084.4,0.98914784]
[1770605771467,0.002,2084.9,2084.5,2.18847621]
[1770605772359,0.002,2085.1,2084.6,1.03500833]
[1770605773466,0.002,2085.1,2084.7,1.19921331]
[1770605776165,0.002,2084.9,2084.7,1.19921331]
[1770605776955,0.002,2084.9,2084.6,1.19924029]
[1770605777359,0.002,2084.9,2084.6,2.15150876]
[1770605777989,0.002,2084.9,2084.7,0.95226847]
[1770605779773,0.002,2084.9,2084.8,1.19915579]
[1770605780911,0.002,2085.5,2084.8,1.19915579]
[1770605780912,0.002,2085.5,2085.1,0.04586049]
[1770605781190,0.002,2085.4,2084.9,3.39686049]
[1770605781389,0.92520438,2085.7,2084.9,3.351]
[1770605781601,0.92520438,2085.7,2084.6,1.19924372]
[1770605781760,0.92520438,2085.7,2084.7,1.19920025]
[1770605782098,0.92320438,2085.5,2084.5,1.19932837]
[1770605782262,0.92320438,2085.5,2084.6,0.04586049]
[1770605782463,0.002,2085.4,2084.9,0.04586049]
[1770605782688,0.002,2085.6,2084.6,0.99812896]
[1770605784588,0.002,2085.6,2084.7,1.19921331]
[1770605784777,0.002,2085.6,2084.8,0.95226847]
[1770605785496,1.19865051,2085.7,2084.8,0.95226847]
[1770605785676,0.002,2085.6,2084.8,0.95226847]
[1770605786482,0.00545555,2085.8,2085.1,0.95226847]
[1770605786683,0.92520438,2085.9,2085.1,4.54994798]
[1770605786873,0.92520438,2085.9,2085.1,3.351]
[1770605787698,0.92520438,2085.9,2084.8,1.19914252]
[1770605787866,0.92520438,2085.9,2084.9,1.19909052]
[1770605788071,0.92520438,2085.9,2084.8,1.19910619]
[1770605788407,0.002,2085.4,2084.9,1.19906236]
[1770605788609,0.002,2085.4,2084.7,1.20021331]
[1770605789297,0.002,2085.4,2084.9,0.04586049]
[1770605790599,0.002,2085.4,2084.7,1.20021331]
[1770605793869,0.92520438,2085.4,2084.7,0.001]
[1770605796000,0.92320438,2085.2,2084.7,0.001]
[1770605797522,0.92320438,2085.2,2084.5,0.001]
[1770605798002,1.19898326,2085.1,2084.5,0.001]
[1770605798208,0.92320438,2085.0,2084.5,0.001]
[1770605799333,4.27420438,2085.3,2084.5,0.001]
[1770605799629,4.5499078,2085.3,2084.5,0.95326847]
[1770605800296,4.5499078,2085.3,2084.6,1.19927084]
[1770605800698,1.1989078,2085.3,2084.6,1.19927084]
[1770605801696,1.20082153,2085.4,2084.9,0.001]
[1770605801904,0.002,2085.0,2084.9,0.001]
[1770605802103,1.20081584,2085.4,2084.9,0.001]
[1770605802440,0.002,2085.2,2084.9,0.001]
[1770605804138,1.20052653,2085.9,2085.0,0.99812896]
[1770605804450,0.92520438,2085.9,2085.0,1.1989987]
[1770605804602,0.92520438,2085.9,2085.0,1.19903782]
[1770605805497,0.002,2085.9,2085.0,2.16729886]
[1770605809137,0.93932755,2085.9,2085.0,2.16729886]
[1770605809430,0.93932755,2085.9,2085.0,1.24489831]
[1770605809624,0.93732755,2085.7,2084.9,1.20005235]
[1770605809819,0.93732755,2085.7,2085.0,1.19904032]
[1770605810020,0.93732755,2085.7,2084.9,0.001]
[1770605810725,0.93732755,2085.7,2084.9,1.20009674]
[1770605811032,0.93732755,2085.7,2084.9,0.001]
[1770605811331,0.93732755,2085.7,2084.9,1.20009119]
[1770605811508,2.13602336,2085.6,2084.9,0.001]
[1770605815344,2.13602336,2085.6,2085.1,0.001]
[1770605815542,0.002,2085.4,2085.1,0.001]
[1770605818246,0.002,2085.4,2085.1,0.92340055]
[1770605818647,0.002,2085.4,2085.1,0.001]
[1770605819329,0.002,2085.4,2085.1,1.19998326]
[1770605819937,0.00109599,2085.4,2085.1,1.19998326]
[1770605820140,0.00014295,2085.4,2085.1,1.19998326]
[1770605820553,0.00014295,2085.4,2085.1,0.001]
[1770605820726,0.9374705,2085.4,2085.1,0.001]
[1770605821750,0.00014295,2085.4,2085.1,0.001]
[1770605822331,1.19896199,2085.4,2085.1,0.001]
[1770605823053,1.19896199,2085.4,2084.9,0.001]
[1770605823054,0.93732755,2085.3,2084.9,0.001]
[1770605823842,1.19892576,2085.2,2084.9,0.001]
[1770605824356,0.93732755,2085.1,2084.9,0.001]
[1770605825854,4.79551468,2085.3,2084.9,0.001]
[1770605827160,4.79551468,2085.3,2085.1,0.001]
[1770605827360,4.79551468,2085.3,2084.9,0.001]
[1770605828774,1.19899103,2085.4,2084.9,0.001]
[1770605828948,0.93732755,2085.3,2084.9,0.001]
[1770605830376,0.93732755,2085.1,2084.6,0.001]
[1770605830583,0.93732755,2085.1,2084.2,0.001]
[1770605831033,0.93642366,2085.1,2084.2,0.001]
[1770605832760,0.93732755,2084.9,2084.2,0.001]
[1770605835661,1.19915579,2084.8,2084.2,0.92837332]
[1770605836469,1.19915579,2084.8,2084.2,0.001]
[1770605837257,1.19901744,2085.1,2084.2,0.91138359]
[1770605837582,2.15511737,2085.1,2084.2,0.91138359]
[1770605837750,0.95609993,2085.0,2084.2,0.001]
[1770605838848,0.95609993,2085.0,2084.4,0.001]
[1770605839667,2.1551982,2084.9,2084.4,0.001]
[1770605840149,1.19909827,2084.9,2084.4,0.001]
[1770605840367,2.1551982,2084.9,2084.4,0.001]
[1770605840570,0.95609993,2084.8,2084.4,0.001]
[1770605841669,2.15531324,2084.7,2084.4,0.001]
[1770605842889,1.19921331,2084.7,2084.4,0.001]
[1770605843087,2.15531324,2084.7,2084.4,0.001]
[1770605847272,1.79932837,2084.5,2084.4,0.001]
[1770605848179,1.79932837,2084.5,2084.2,0.001]
[1770605850476,0.95609993,2084.4,2084.2,0.001]
[1770605851087,0.95609993,2084.4,2084.0,0.001]
[1770605851688,1.19944345,2084.3,2084.0,0.001]
[1770605853918,1.19932837,2084.5,2084.1,0.001]
[1770605855296,4.79675821,2084.8,2084.1,0.001]
[1770605855497,4.55115579,2084.8,2084.1,0.91138359]
[1770605856906,1.20115127,2084.9,2084.2,0.91038359]
[1770605858728,0.002,2084.9,2084.2,0.91038359]
[1770605858884,0.002,2084.9,2084.5,0.91038359]
[1770605859215,0.002,2085.1,2084.5,0.91038359]
[1770605859779,2.15709696,2085.1,2084.3,1.19941615]
[1770605860106,2.15709696,2085.1,2084.2,9.25185049]
[1770605860405,0.6,2084.9,2084.2,9.25185793]
[1770605860802,1.19915579,2084.8,2084.2,9.25184096]
[1770605861196,0.6,2084.9,2084.3,0.91038359]
[1770605861394,1.19911847,2084.9,2084.3,0.91038359]
[1770605861720,1.19911847,2084.9,2084.2,8.34145737]
[1770605862024,1.19911847,2084.9,2084.2,9.25184096]
[1770605862617,2.1552184,2084.9,2084.2,7.142]
[1770605863485,1.19908215,2085.0,2084.3,0.91038359]
[1770605863706,2.1571165,2085.1,2084.3,0.91038359]
[1770605864285,2.1571165,2085.1,2084.2,8.34149846]
[1770605864286,0.95609993,2085.0,2084.2,8.34149846]
[1770605864487,0.95609993,2085.0,2084.2,8.34149136]
[1770605864782,0.95609993,2085.0,2084.2,4.55149136]
[1770605865418,0.95609993,2085.0,2084.2,5.50250299]
[1770605866015,1.19909827,2084.9,2084.3,0.001]
[1770605866214,0.002,2084.7,2084.3,0.95201163]
[1770605867325,0.002,2084.7,2084.3,0.001]
[1770605867990,0.95662108,2084.7,2084.1,0.001]
[1770605868886,0.002,2084.7,2084.1,0.001]
[1770605869086,0.95662108,2084.7,2084.1,0.001]
[1770605870002,1.19927084,2084.6,2084.1,0.001]
[1770605870284,0.6,2084.4,2084.1,0.001]
[1770605872806,0.4872084,2084.4,2084.1,0.95201163]
[1770605873123,1.2012181,2084.7,2084.1,0.95201163]
[1770605873823,1.20121375,2084.7,2084.1,0.95201163]
[1770605874208,0.002,2084.7,2084.1,2.15155231]
[1770605874416,0.95662108,2084.7,2084.1,0.001]
[1770605874610,0.002,2084.7,2084.1,1.20053964]
[1770605875521,0.95662108,2084.7,2084.1,0.001]
[1770605875722,0.95662108,2084.7,2084.1,1.20054852]
[1770605875723,0.002,2084.7,2084.1,1.20054852]
[1770605876229,0.95662108,2084.7,2084.1,0.001]
[1770605879015,1.19927084,2084.6,2084.3,0.001]
[1770605879204,0.002,2084.5,2084.3,0.001]
[1770605880618,0.002,2084.5,2084.1,0.001]
[1770605881024,0.95662108,2084.5,2084.1,0.001]
[1770605881210,0.95662108,2084.5,2083.7,4.58611343]
[1770605881405,0.95662108,2084.5,2083.7,4.48614324]
[1770605881643,0.95462108,2084.3,2083.6,0.001]
[1770605882125,0.95462108,2084.3,2083.0,0.1391844]
[1770605882652,0.04786049,2084.5,2083.0,0.1391844]
[1770605882653,0.95462108,2083.8,2083.0,0.1391844]
[1770605882940,1.19984641,2083.6,2083.0,0.1391844]
[1770605883673,2.15429476,2084.0,2083.0,2.29035479]
[1770605883808,5.75340505,2083.9,2083.0,0.1391844]
[1770605884012,5.75340505,2083.9,2083.0,1.33936915]
[1770605884419,0.95462108,2083.8,2083.0,1.33936915]
[1770605885317,1.19978883,2083.7,2083.0,1.33936915]
[1770605886314,4.5516692,2084.0,2083.0,1.33936915]
[1770605886518,4.5516692,2084.0,2083.1,0.95101163]
[1770605886713,1.1996692,2084.0,2083.1,0.95101163]
[1770605887236,2.15429028,2084.0,2083.2,1.2000768]
[1770605887476,2.15347612,2084.0,2083.2,1.2000768]
[1770605889126,2.15347612,2084.0,2083.1,2.15110066]
[1770605890633,0.95462108,2083.9,2083.1,1.20008903]
[1770605891240,1.19973126,2083.8,2083.1,1.20008903]
[1770605891445,1.19973126,2083.8,2083.4,0.001]
[1770605891845,1.20173126,2083.8,2083.4,0.001]
[1770605892049,2.15635234,2083.8,2083.4,0.001]
[1770605892926,0.95462108,2083.7,2083.4,0.001]
[1770605893656,1.19984641,2083.6,2083.4,0.001]
[1770605893952,0.002,2083.8,2083.4,0.001]
[1770605894255,1.20173463,2083.8,2083.4,0.001]
[1770605896150,0.002,2083.8,2083.4,0.001]
[1770605896547,0.002,2083.8,2083.4,0.99728966]
[1770605897362,0.002,2084.0,2083.4,0.99728966]
[1770605898254,0.002,2084.0,2083.5,1.199904]
[1770605900557,0.002,2084.0,2083.4,0.001]
[1770605900754,0.002,2084.0,2083.4,1.20095312]
[1770605901144,1.0017493,2084.0,2083.4,0.001]
[1770605901350,0.002,2084.0,2083.4,1.20095903]
[1770605902353,0.002,2084.0,2083.4,0.001]
[1770605902865,0.002,2084.0,2083.4,0.99728966]
[1770605903159,0.002,2084.0,2083.4,0.001]
[1770605903660,1.0017493,2084.0,2083.4,0.001]
[1770605904439,1.19967368,2083.9,2083.6,0.001]
[1770605904640,0.002,2083.8,2083.6,0.001]
[1770605909071,0.002,2083.8,2083.6,0.99728966]
[1770605910472,0.002,2083.8,2083.6,0.001]
[1770605912702,0.9997493,2083.7,2083.1,0.001]
[1770605912996,0.9997493,2083.6,2082.3,0.99628966]
[1770605913278,0.9997493,2083.6,2082.2,0.1401844]
[1770605913447,0.9997493,2083.6,2082.2,1.3407934]
[1770605914072,1.04560979,2083.6,2082.2,1.34078932]
[1770605914284,1.04560979,2083.6,2082.3,1.20058814]
[1770605914453,0.9997493,2083.6,2082.6,1.20038568]
[1770605914649,2.1996533,2083.5,2082.5,2.19673037]
[1770605914848,2.1996533,2083.5,2082.6,0.1401844]
[1770605915078,0.9997493,2083.4,2082.6,0.1401844]
[1770605916776,2.1997685,2083.3,2082.7,0.1401844]
[1770605916967,2.1997685,2083.3,2082.6,0.1401844]
[1770605917165,2.1997685,2083.3,2082.5,0.1401844]
[1770605917567,0.9997493,2083.2,2082.5,0.1401844]
[1770605918879,0.9997493,2083.0,2082.5,0.1401844]
[1770605919485,1.20013441,2083.1,2082.5,0.1401844]
[1770605921782,0.9997493,2083.5,2082.5,0.1401844]
[1770605922079,0.9997493,2083.5,2082.5,2.33694768]
[1770605922294,0.9997493,2083.5,2082.5,0.1401844]
[1770605923265,0.9997493,2083.3,2082.5,0.1401844]
[1770605925257,0.94212023,2083.1,2082.5,0.1401844]
[1770605925480,0.94212023,2083.0,2082.5,0.1401844]
[1770605926011,0.94212023,2083.0,2082.4,0.001]
[1770605926308,0.94212023,2083.0,2082.1,0.001]
[1770605927258,2.14236988,2082.9,2082.1,0.001]
[1770605928392,1.20024965,2082.9,2082.1,0.98800179]
[1770605928690,2.14236988,2082.9,2082.1,0.98800179]
[1770605928904,0.94212023,2082.8,2082.1,0.001]
[1770605929708,1.20036491,2082.7,2082.5,0.001]
[1770605930205,0.94212023,2082.6,2082.1,0.001]
[1770605930404,1.20036491,2082.7,2081.3,1.20213889]
[1770605930405,0.94212023,2082.4,2081.3,1.20213889]
[1770605930607,0.94212023,2082.4,2081.4,0.001]
[1770605931709,5.49671572,2082.3,2081.4,0.001]
[1770605932214,0.94212023,2082.2,2081.4,0.001]
[1770605932808,4.29712023,2082.2,2081.4,0.001]
[1770605933700,4.55570446,2082.2,2081.4,2.18911642]
[1770605934104,1.20070446,2082.2,2081.4,2.18911642]
[1770605935019,4.55563472,2082.3,2081.4,2.18911642]
[1770605935384,4.55563472,2082.3,2081.4,2.18811642]
[1770605935687,5.49775495,2082.3,2081.4,2.18811642]
[1770605935895,0.94212023,2082.2,2081.5,0.001]
[1770605937889,1.20071082,2082.1,2081.5,0.001]
[1770605938813,4.80219198,2082.4,2081.5,0.98800179]
[1770605938814,1.20054369,2082.4,2081.5,0.98800179]
[1770605939387,2.14266392,2082.4,2081.5,0.98800179]
[1770605939787,2.14266392,2082.4,2081.6,1.20099923]
[1770605941004,2.14266392,2082.4,2081.6,2.18800102]
[1770605941916,4.80215136,2082.5,2081.6,2.18800102]
[1770605941917,1.20048158,2082.5,2081.7,0.98700179]
[1770605942114,1.20048158,2082.5,2081.7,0.98800179]
[1770605942418,3.355,2082.6,2081.7,0.98800179]
[1770605943324,0.94212023,2082.5,2081.7,0.001]
[1770605943824,0.98798072,2082.5,2081.7,0.001]
[1770605944022,0.94212023,2082.3,2081.7,0.001]
[1770605944226,0.94212023,2082.3,2081.6,0.001]
[1770605944523,0.94212023,2082.3,2081.6,0.002]
[1770605945029,1.64212023,2082.1,2081.6,0.002]
[1770605945424,0.7,2082.1,2081.6,0.002]
[1770605945611,0.94212023,2082.3,2081.6,0.002]
[1770605945923,0.94212023,2082.1,2081.6,0.002]
[1770605946603,0.94212023,2082.1,2081.6,0.001]
[1770605946829,2.14277338,2082.2,2081.7,0.001]
[1770605947032,2.14277338,2082.2,2081.6,0.001]
[1770605947405,5.74429174,2082.4,2081.6,0.001]
[1770605947599,0.94212023,2082.3,2081.6,0.001]
[1770605948201,2.14277338,2082.2,2081.6,0.001]
[1770605949702,0.94212023,2082.1,2081.6,0.001]
[1770605949909,1.20065315,2082.2,2081.6,0.001]
[1770605950230,1.20048019,2082.5,2081.6,0.98800179]
[1770605952193,2.14260042,2082.5,2081.7,2.18794332]
[1770605952400,1.20048019,2082.5,2081.7,2.18794332]
[1770605954317,1.20048019,2082.5,2081.8,0.98700179]
[1770605954520,2.14260042,2082.5,2081.6,0.98800179]
[1770605954826,0.94212023,2082.4,2081.8,0.001]
[1770605955038,0.94212023,2082.4,2081.6,0.001]
[1770605955321,0.95823648,2082.3,2081.6,0.001]
[1770605956410,0.93101399,2082.1,2081.6,0.001]
[1770605958029,1.20065315,2082.2,2081.6,0.001]
[1770605958244,0.93101399,2082.1,2081.6,0.001]
[1770605958401,1.20076849,2082.0,2081.6,0.001]
[1770605958604,1.20075025,2082.1,2081.6,0.001]
[1770605959504,1.2006787,2082.2,2081.6,0.90412751]
[1770605960525,1.20263799,2082.3,2081.7,1.20094153]
[1770605961031,1.20263799,2082.3,2081.6,0.001]
[1770605961535,1.20263799,2082.3,2081.6,1.20199196]
[1770605962439,2.13365198,2082.3,2081.6,0.001]
[1770605962612,1.20263799,2082.3,2081.6,0.90412751]
[1770605962819,1.20259641,2082.3,2081.6,0.90412751]
[1770605964016,1.20259605,2082.3,2081.6,0.90412751]
[1770605964331,0.002,2082.3,2081.6,0.90412751]
[1770605964538,1.20259707,2082.3,2081.6,0.90412751]
[1770605964834,1.20259707,2082.3,2081.8,0.90312751]
[1770605964835,0.002,2082.3,2081.8,0.90312751]
[1770605965234,0.002,2082.3,2081.7,1.20094153]
[1770605965539,0.002,2082.3,2081.7,2.10406904]
[1770605965740,0.002,2082.3,2081.8,0.90312751]
[1770605967150,0.002,2082.3,2081.9,1.20082616]
[1770605968622,0.002,2082.1,2081.9,1.20082616]
[1770605969334,0.002,2082.1,2081.9,0.90312751]
[1770605972050,0.002,2082.1,2081.9,2.10394312]
[1770605972426,0.002,2082.3,2082.0,0.90312751]
[1770605972742,0.002,2082.3,2081.9,1.20081561]
[1770605973145,0.002,2082.3,2081.9,2.10394312]
[1770605974175,0.93301399,2082.3,2081.8,0.001]
[1770605976740,1.20065315,2082.2,2081.3,4.80468822]
[1770605977046,2.13166714,2082.2,2081.3,4.80468822]
[1770605978256,2.13166714,2082.2,2081.4,0.90312751]
[1770605980741,2.13166714,2082.2,2081.4,2.10422191]
[1770605980959,1.20065315,2082.2,2081.5,0.90312751]
[1770605981335,1.20065315,2082.2,2081.5,0.90412751]
[1770605981541,0.002,2082.0,2081.5,0.90412751]
[1770605982760,0.002,2082.0,2081.5,2.10516926]
[1770605983161,0.002,2082.0,2081.5,0.001]
[1770605983470,0.002,2082.0,2081.5,1.20204438]
[1770605984162,0.93301399,2082.0,2081.5,0.001]
[1770605984868,2.13184015,2081.9,2081.5,0.001]
[1770605989850,0.002,2082.2,2081.6,0.99774614]
[1770605992477,0.002,2082.2,2081.6,2.19871449]
[1770605992768,0.002,2082.2,2081.7,0.99774614]
[1770605992966,0.002,2082.2,2081.6,1.20096835]
[1770605993184,0.002,2082.2,2081.6,2.19871449]
[1770605993546,2.12942778,2083.0,2082.0,0.99774614]
[1770605993746,1.20019203,2083.0,2081.7,0.99774614]
[1770605994249,1.20019203,2083.0,2082.1,0.99774614]
[1770605994566,5.73178488,2083.1,2082.2,1.20065315]
[1770605995250,1.20213441,2083.1,2082.3,0.99774614]
[1770605996680,0.002,2083.1,2082.4,1.20053784]
[1770605996867,0.93123575,2083.1,2082.4,1.20053784]
[1770605999003,1.20019203,2083.0,2082.3,2.19829786]
[1770606000787,0.002,2083.3,2082.4,0.99774614]
[1770606000960,0.002,2083.8,2083.0,0.99774614]
[1770606001161,0.002,2083.8,2082.9,1.20024965]
[1770606001162,0.93123575,2083.8,2082.9,1.20024965]
[1770606001360,0.93123575,2083.8,2082.8,2.19801722]
[1770606002364,0.93123575,2083.8,2082.6,1.20040413]
[1770606002593,0.93123575,2083.8,2082.5,1.20047747]
[1770606002796,0.92923575,2083.6,2082.5,1.20047747]
[1770606004286,0.92923575,2083.4,2082.3,5.79991598]
[1770606004997,0.92923575,2083.4,2082.3,2.19834163]
[1770606006204,1.2000192,2083.3,2082.4,0.99774614]
[1770606006384,1.20000209,2083.4,2082.4,0.99774614]
[1770606006782,1.20000209,2083.4,2082.6,0.99774614]
[1770606007315,1.19993872,2083.5,2082.6,0.99774614]
[1770606007497,0.002,2083.4,2082.6,0.99774614]
[1770606008617,0.002,2083.4,2082.7,1.20036491]
[1770606008821,0.002,2083.4,2082.5,0.04586049]
[1770606008822,0.93123575,2083.4,2082.5,1.20047804]
[1770606009488,0.93123575,2083.4,2082.6,1.20041868]
[1770606009690,0.93123575,2083.4,2082.6,1.20041035]
[1770606010097,0.93123575,2083.4,2082.5,1.20044124]
[1770606010306,0.93123575,2083.4,2082.5,1.20046986]
[1770606011417,1.2000192,2083.3,2082.5,1.20046986]
[1770606011592,2.12925495,2083.3,2082.5,1.20046986]
[1770606011783,0.92923575,2083.2,2082.2,0.99774614]
[1770606012112,0.92923575,2083.2,2082.4,1.20053721]
[1770606013484,1.2020192,2083.4,2082.3,0.99774614]
[1770606013817,1.2000192,2083.3,2082.5,0.99774614]
[1770606016900,0.95666032,2083.4,2082.4,1.20053197]
[1770606017196,0.95666032,2083.4,2082.5,1.20047789]
[1770606017713,0.95666032,2083.4,2082.5,2.11223499]
[1770606018034,0.002,2083.4,2082.8,0.9117571]
[1770606018805,0.002,2083.4,2083.0,0.9117571]
[1770606020794,0.002,2083.4,2083.1,1.20013441]